[Event "EYTCC Girls U18 2022"]
[Site "Thessaloniki"]
[Date "2022.07.16"]
[Round "5.4"]
[White "Mihelic, Vesna"]
[Black "Kayis, Gulcan Sena"]
[Result "1/2-1/2"]
[ECO "C01"]
[WhiteElo "2029"]
[BlackElo "1682"]
[Annotator "ChessBase"]
[PlyCount "100"]
[EventDate "2022.07.12"]
[EventType "team-tourn"]
[EventCountry "GRE"]
[SourceTitle "playchess.com"]
[Source "ChessBase"]
[SourceQuality "1"]
[WhiteTeam "Slovenia"]
[BlackTeam "Turkey"]
[WhiteTeamCountry "SLO"]
[BlackTeamCountry "TUR"]
[TimeControl "40/5400+30:1800+30"]

1. e4 {[%emt 0:00:03]} e6 {[%emt 0:00:14]} 2. d4 {[%emt 0:00:08]} d5 {[%emt 0:00:12]} 3. exd5 {[%emt 0:00:14]} exd5 {[%emt 0:00:12]} 4. Bd3 {[%emt 0:00:16]} Nc6 {[%emt 0:00:18]} 5. c3 {[%emt 0:00:19]} Bd6 {[%emt 0:01:29]} 6. Nf3 {[%emt 0:00:53]} Nge7 {[%emt 0:00:47]} 7. O-O {[%emt 0:00:35]} Bg4 {[%emt 0:00:59]} 8. Re1 {[%emt 0:01:03]} Qd7 {[%emt 0:02:14]} 9. Nbd2 {[%emt 0:02:43]} O-O-O {[%emt 0:02:05]} 10. Qc2 {[%emt 0:06:47]} f6 {[%emt 0:15:23]} 11. b4 {[%emt 0:02:31]} Rde8 {[%emt 0:02:41]} 12. a4 {[%emt 0:12:29]} Kb8 {[%emt 0:01:17]} 13. Ba3 {[%emt 0:06:18]} Nc8 {[%emt 0:02:25]} 14. Bb5 {[%emt 0:10:17]} Qf5 {[%emt 0:14:52]} 15. Qxf5 {[%emt 0:08:27]} Bxf5 {[%emt 0:00:14]} 16. Nb3 {[%emt 0:04:55]} Rxe1+ {[%emt 0:09:28]} 17. Rxe1 {[%emt 0:00:09]} N6e7 {[%emt 0:01:28]} 18. Nh4 {[%emt 0:05:57]} Bc2 {[%emt 0:06:17]} 19. Na1 {[%emt 0:00:31]} Be4 {[%emt 0:05:33]} 20. f3 {[%emt 0:01:03]} Bg6 {[%emt 0:00:25]} 21. Nxg6 {[%emt 0:00:41]} Nxg6 {[%emt 0:00:45]} 22. g3 {[%emt 0:03:01]} h5 {[%emt 0:04:03]} 23. Bd3 {[%emt 0:01:22]} Nge7 {[%emt 0:05:57]} 24. Nc2 {[%emt 0:05:12]} c6 {[%emt 0:07:31]} 25. b5 {[%emt 0:01:17]} Kc7 {[%emt 0:02:36]} 26. Bxd6+ {[%emt 0:13:17]} Kxd6 {[%emt 0:00:07]} 27. Ne3 {[%emt 0:00:20]} Kd7 {[%emt 0:08:30]} 28. Nf5 {[%emt 0:00:52]} Rg8 {[%emt 0:01:43]} 29. Kf2 {[%emt 0:04:32]} g6 {[%emt 0:00:39]} 30. Nxe7 {[%emt 0:00:24]} Nxe7 {[%emt 0:00:06]} 31. Rb1 {[%emt 0:01:14]} Kc7 {[%emt 0:02:23]} 32. a5 {[%emt 0:02:06]} Nc8 {[%emt 0:01:17]} 33. g4 {[%emt 0:02:29]} h4 {[%emt 0:00:42]} 34. f4 {[%emt 0:00:34]} Nd6 {[%emt 0:01:39]} 35. bxc6 {[%emt 0:01:00]} bxc6 {[%emt 0:00:07]} 36. Kf3 {[%emt 0:00:35]} Kd7 {[%emt 0:00:29]} 37. Kg2 {[%emt 0:01:32]} Ke7 {[%emt 0:01:02]} 38. Kh3 {[%emt 0:00:20]} g5 {[%emt 0:00:20]} 39. fxg5 {[%emt 0:00:48]} fxg5 {[%emt 0:00:05]} 40. Re1+ {[%emt 0:00:00]} Kf6 {[%emt 0:00:00]} 41. Rf1+ {[%emt 0:02:42]} Kg7 {[%emt 0:08:18]} 42. Re1 {[%emt 0:01:51]} Kf6 {[%emt 0:04:59]} 43. Bf5 {[%emt 0:10:25]} Nxf5 {[%emt 0:06:51]} 44. gxf5 {[%emt 0:01:49]} Kxf5 {[%emt 0:03:46]} 45. Re7 {[%emt 0:00:34]} Rb8 {[%emt 0:01:31]} 46. Rc7 {[%emt 0:05:24]} Rb3 {[%emt 0:04:31]} 47. Rxc6 {[%emt 0:00:15]} a6 {[%emt 0:01:27]} 48. Rc5 {[%emt 0:05:04]} Rb2 {[%emt 0:01:25]} 49. Rc6 {[%emt 0:04:45]} Rb3 {[%emt 0:01:03]} 50. Rc5 {[%emt 0:04:26]} Rb2 {[%emt 0:00:05]} 1/2-1/2

[Event "EYTCC Girls U18 2022"]
[Site "Thessaloniki"]
[Date "2022.07.16"]
[Round "5.5"]
[White "Wikar, Martyna"]
[Black "Levitan, Ronit"]
[Result "1-0"]
[ECO "A00"]
[WhiteElo "2208"]
[BlackElo "2084"]
[Annotator "ChessBase"]
[PlyCount "99"]
[EventDate "2022.07.12"]
[EventType "team-tourn"]
[EventCountry "GRE"]
[SourceTitle "playchess.com"]
[Source "ChessBase"]
[SourceQuality "1"]
[WhiteTeam "Poland"]
[BlackTeam "Israel"]
[WhiteTeamCountry "POL"]
[BlackTeamCountry "ISR"]
[TimeControl "40/5400+30:1800+30"]

1. Nc3 {[%emt 0:00:17]} Nf6 {[%emt 0:01:00]} 2. d4 {[%emt 0:00:17]} d5 {[%emt 0:00:11]} 3. Bf4 {[%emt 0:00:09]} a6 {[%emt 0:00:22]} 4. e3 {[%emt 0:00:35]} e6 {[%emt 0:00:08]} 5. g4 {[%emt 0:00:21]} h6 {[%emt 0:17:21]} 6. Bg2 {[%emt 0:06:20]} c5 {[%emt 0:02:05]} 7. h4 {[%emt 0:03:37]} Bd6 {[%emt 0:04:14]} 8. g5 {[%emt 0:06:51]} Bxf4 {[%emt 0:02:55]} 9. exf4 {[%emt 0:01:34]} cxd4 {[%emt 0:01:08]} 10. Qxd4 {[%emt 0:01:34]} Nc6 {[%emt 0:00:31]} 11. Qd2 {[%emt 0:00:46]} Ng8 {[%emt 0:08:55]} 12. O-O-O {[%emt 0:06:52]} Nge7 {[%emt 0:00:24]} 13. Nf3 {[%emt 0:04:53]} Bd7 {[%emt 0:04:47]} 14. Rhe1 {[%emt 0:05:30]} Qa5 {[%emt 0:02:30]} 15. f5 {[%emt 0:01:11]} Nxf5 {[%emt 0:05:17]} 16. Qxd5 {[%emt 0:09:11]} Qxd5 {[%emt 0:00:52]} 17. Nxd5 {[%emt 0:00:08]} O-O-O {[%emt 0:00:34]} 18. Nc3 {[%emt 0:03:52]} Kc7 {[%emt 0:01:59]} 19. Ne4 {[%emt 0:01:45]} Bc8 {[%emt 0:01:29]} 20. Rxd8 {[%emt 0:00:36]} Rxd8 {[%emt 0:00:32]} 21. c3 {[%emt 0:00:18]} b6 {[%emt 0:00:35]} 22. Kc2 {[%emt 0:03:24]} a5 {[%emt 0:00:35]} 23. Bf1 {[%emt 0:00:46]} Bb7 {[%emt 0:03:49]} 24. h5 {[%emt 0:04:54]} Nd6 {[%emt 0:07:07]} 25. Bd3 {[%emt 0:05:25]} Nxe4 {[%emt 0:11:13]} 26. Bxe4 {[%emt 0:00:06]} Re8 {[%emt 0:05:31]} 27. gxh6 {[%emt 0:05:43]} gxh6 {[%emt 0:00:06]} 28. Bxc6 {[%emt 0:00:27]} Bxc6 {[%emt 0:00:07]} 29. Ne5 {[%emt 0:00:10]} f6 {[%emt 0:09:13]} 30. Nxc6 {[%emt 0:01:20]} Kxc6 {[%emt 0:00:05]} 31. Rg1 {[%emt 0:00:31]} Rd8 {[%emt 0:00:10]} 32. Rg6 {[%emt 0:02:02]} Rd5 {[%emt 0:00:10]} 33. Rxf6 {[%emt 0:00:19]} Rxh5 {[%emt 0:00:19]} 34. Rxe6+ {[%emt 0:00:11]} Kb5 {[%emt 0:00:53]} 35. Rf6 {[%emt 0:02:50]} Rh2 {[%emt 0:01:15]} 36. Kb3 {[%emt 0:02:39]} Ka6 {[%emt 0:00:48]} 37. Ka4 {[%emt 0:01:02]} Rh1 {[%emt 0:01:42]} 38. c4 {[%emt 0:00:49]} Rc1 {[%emt 0:03:55]} 39. b3 {[%emt 0:00:36]} h5 {[%emt 0:02:05]} 40. f4 Rc2 {[%emt 0:00:00]} 41. a3 {[%emt 0:01:31]} Rc3 {[%emt 0:05:55]} 42. Rh6 {[%emt 0:02:31]} Rf3 {[%emt 0:00:10]} 43. c5 {[%emt 0:01:27]} Rxf4+ {[%emt 0:00:08]} 44. b4 {[%emt 0:00:05]} axb4 {[%emt 0:00:50]} 45. axb4 {[%emt 0:00:28]} h4 {[%emt 0:01:12]} 46. Rxb6+ {[%emt 0:00:12]} Ka7 {[%emt 0:00:03]} 47. Rh6 {[%emt 0:00:12]} Rg4 {[%emt 0:00:08]} 48. Ka5 {[%emt 0:00:15]} Rf4 {[%emt 0:00:26]} 49. Rh7+ {[%emt 0:00:20]} Kb8 {[%emt 0:00:22]} 50. b5 {[%emt 0:00:11]} 1-0

[Event "EYTCC Girls U18 2022"]
[Site "Thessaloniki"]
[Date "2022.07.16"]
[Round "5.6"]
[White "Kochavi, Dana"]
[Black "Marcinczyk, Monika"]
[Result "0-1"]
[ECO "B90"]
[WhiteElo "1885"]
[BlackElo "1991"]
[Annotator "ChessBase"]
[PlyCount "108"]
[EventDate "2022.07.12"]
[EventType "team-tourn"]
[EventCountry "GRE"]
[SourceTitle "playchess.com"]
[Source "ChessBase"]
[SourceQuality "1"]
[WhiteTeam "Israel"]
[BlackTeam "Poland"]
[WhiteTeamCountry "ISR"]
[BlackTeamCountry "POL"]
[TimeControl "40/5400+30:1800+30"]

1. e4 {[%emt 0:00:02]} c5 {[%emt 0:00:07]} 2. Nf3 {[%emt 0:00:06]} d6 {[%emt 0:00:05]} 3. d4 {[%emt 0:00:05]} cxd4 {[%emt 0:00:04]} 4. Nxd4 {[%emt 0:00:05]} Nf6 {[%emt 0:00:06]} 5. Nc3 {[%emt 0:00:06]} a6 {[%emt 0:00:06]} 6. h3 {[%emt 0:00:01]} e5 {[%emt 0:01:06]} 7. Nde2 {[%emt 0:00:18]} h5 {[%emt 0:00:24]} 8. g3 {[%emt 0:02:06]} b5 {[%emt 0:01:40]} 9. Bg2 {[%emt 0:04:11]} Be7 {[%emt 0:05:34]} 10. Be3 {[%emt 0:01:15]} Be6 {[%emt 0:01:37]} 11. Nd5 {[%emt 0:05:44]} Nxd5 {[%emt 0:06:38]} 12. exd5 {[%emt 0:00:11]} Bf5 {[%emt 0:00:16]} 13. a4 {[%emt 0:03:19]} b4 {[%emt 0:12:00]} 14. c3 {[%emt 0:06:09]} bxc3 {[%emt 0:02:41]} 15. Nxc3 {[%emt 0:01:48]} a5 {[%emt 0:06:07]} 16. Rc1 {[%emt 0:02:28]} Na6 {[%emt 0:01:49]} 17. Nb5 {[%emt 0:02:36]} Rc8 {[%emt 0:07:29]} 18. O-O {[%emt 0:03:25]} Nb4 {[%emt 0:09:57]} 19. Na3 {[%emt 0:17:54]} Rxc1 {[%emt 0:06:33]} 20. Qxc1 {[%emt 0:01:55]} Qd7 {[%emt 0:01:52]} 21. Kh2 {[%emt 0:02:58]} O-O {[%emt 0:07:01]} 22. b3 {[%emt 0:02:32]} Bd3 {[%emt 0:04:42]} 23. Re1 {[%emt 0:03:09]} Rc8 {[%emt 0:01:35]} 24. Qd1 {[%emt 0:01:00]} h4 {[%emt 0:03:18]} 25. Bd2 {[%emt 0:07:29]} Qf5 {[%emt 0:03:12]} 26. Qg4 {[%emt 0:05:56]} hxg3+ {[%emt 0:01:40]} 27. Kxg3 {[%emt 0:00:27]} Rc5 {[%emt 0:02:09]} 28. Qxf5 {[%emt 0:11:21]} Bxf5 {[%emt 0:00:01]} 29. Nc4 {[%emt 0:00:45]} Nxd5 {[%emt 0:02:31]} 30. Nxa5 {[%emt 0:03:12]} Rc2 {[%emt 0:02:51]} 31. Bxd5 {[%emt 0:05:48]} Rxd2 {[%emt 0:00:06]} 32. Nc6 {[%emt 0:01:28]} Bg5 {[%emt 0:00:10]} 33. Bc4 {[%emt 0:00:16]} Bd3 {[%emt 0:05:37]} 34. a5 {[%emt 0:00:43]} Bxc4 {[%emt 0:01:54]} 35. bxc4 {[%emt 0:00:05]} Ra2 {[%emt 0:00:55]} 36. Rb1 {[%emt 0:00:13]} Bd2 {[%emt 0:01:02]} 37. Rb8+ {[%emt 0:01:55]} Kh7 {[%emt 0:00:06]} 38. Rd8 {[%emt 0:00:40]} Bxa5 {[%emt 0:00:52]} 39. Rxd6 {[%emt 0:02:14]} Be1 {[%emt 0:01:48]} 40. Nxe5 {[%emt 0:00:00]} Rxf2 {[%emt 0:00:00]} 41. Kg4 {[%emt 0:00:46]} f5+ {[%emt 0:02:55]} 42. Kh5 {[%emt 0:01:03]} Rg2 {[%emt 0:12:00]} 43. Rg6 {[%emt 0:03:34]} Rh2 {[%emt 0:01:46]} 44. Kg5 {[%emt 0:00:11]} Bc3 {[%emt 0:02:17]} 45. Re6 {[%emt 0:00:19]} Rf2 {[%emt 0:03:42]} 46. c5 {[%emt 0:07:07]} Bd2+ {[%emt 0:01:06]} 47. Kh5 {[%emt 0:01:43]} Rh2 {[%emt 0:00:41]} 48. h4 {[%emt 0:00:18]} Re2 {[%emt 0:02:03]} 49. c6 {[%emt 0:01:57]} Rxe5 {[%emt 0:00:52]} 50. Rd6 {[%emt 0:01:30]} Rd5 {[%emt 0:02:48]} 51. Re6 {[%emt 0:00:43]} Rc5 {[%emt 0:02:29]} 52. Rd6 {[%emt 0:01:28]} Ba5 {[%emt 0:01:22]} 53. Re6 {[%emt 0:00:46]} Bd8 {[%emt 0:01:23]} 54. c7 {[%emt 0:00:36]} Bxc7 {[%emt 0:00:22]} 0-1

[Event "EYTCC Girls U18 2022"]
[Site "Thessaloniki"]
[Date "2022.07.16"]
[Round "5.7"]
[White "Rozmanec, Pia"]
[Black "Ziegenfuss, Antonia"]
[Result "0-1"]
[ECO "B90"]
[WhiteElo "1642"]
[BlackElo "2170"]
[Annotator "ChessBase"]
[PlyCount "94"]
[EventDate "2022.07.12"]
[EventType "team-tourn"]
[EventCountry "GRE"]
[SourceTitle "playchess.com"]
[Source "ChessBase"]
[SourceQuality "1"]
[WhiteTeam "Slovenia"]
[BlackTeam "Germany"]
[WhiteTeamCountry "SLO"]
[BlackTeamCountry "GER"]
[TimeControl "40/5400+30:1800+30"]

1. e4 {[%emt 0:00:01]} c5 {[%emt 0:00:08]} 2. Nf3 {[%emt 0:00:04]} d6 {[%emt 0:00:05]} 3. d4 {[%emt 0:00:12]} cxd4 {[%emt 0:00:07]} 4. Nxd4 {[%emt 0:00:02]} Nf6 {[%emt 0:00:11]} 5. Nc3 {[%emt 0:00:15]} a6 {[%emt 0:00:11]} 6. f3 {[%emt 0:00:18]} e5 {[%emt 0:00:31]} 7. Nb3 {[%emt 0:00:07]} Be6 {[%emt 0:01:16]} 8. Be3 {[%emt 0:00:39]} Be7 {[%emt 0:00:22]} 9. Qd2 {[%emt 0:00:18]} h5 {[%emt 0:00:59]} 10. Nd5 {[%emt 0:01:12]} Bxd5 {[%emt 0:02:13]} 11. exd5 {[%emt 0:00:06]} Nbd7 {[%emt 0:00:57]} 12. Be2 {[%emt 0:02:25]} a5 {[%emt 0:03:18]} 13. a4 {[%emt 0:05:04]} h4 {[%emt 0:07:33]} 14. h3 {[%emt 0:06:32]} Nh5 {[%emt 0:05:20]} 15. Bb5 {[%emt 0:12:18]} Ng3 {[%emt 0:09:29]} 16. Rg1 {[%emt 0:00:13]} Nf5 {[%emt 0:13:06]} 17. Bf2 {[%emt 0:12:53]} O-O {[%emt 0:05:10]} 18. Qd3 {[%emt 0:12:02]} g6 {[%emt 0:10:19]} 19. O-O-O {[%emt 0:02:47]} Bg5+ {[%emt 0:02:17]} 20. Kb1 {[%emt 0:00:20]} Ng3 {[%emt 0:08:46]} 21. Nd2 {[%emt 0:17:24]} f5 {[%emt 0:04:18]} 22. Be3 {[%emt 0:03:52]} Bxe3 {[%emt 0:03:43]} 23. Qxe3 {[%emt 0:00:07]} Kg7 {[%emt 0:03:56]} 24. Nc4 {[%emt 0:04:23]} Qc7 {[%emt 0:12:53]} 25. f4 {[%emt 0:09:53]} e4 {[%emt 0:03:19]} 26. Qd4+ {[%emt 0:03:41]} Nf6 {[%emt 0:00:26]} 27. Ne3 {[%emt 0:00:55]} Rac8 {[%emt 0:00:52]} 28. c3 {[%emt 0:00:39]} Qc5 {[%emt 0:00:37]} 29. Qd2 {[%emt 0:01:32]} Rf7 {[%emt 0:01:07]} 30. Nc2 {[%emt 0:02:31]} Re7 {[%emt 0:00:21]} 31. Ne3 {[%emt 0:00:47]} Nfh5 {[%emt 0:00:26]} 32. Qf2 {[%emt 0:01:36]} Rf8 {[%emt 0:00:55]} 33. Rge1 {[%emt 0:01:15]} Kh7 34. Kc2 {[%emt 0:00:30]} Kh6 {[%emt 0:01:36]} 35. Kb1 {[%emt 0:00:24]} g5 {[%emt 0:00:30]} 36. fxg5+ {[%emt 0:00:30]} Kxg5 {[%emt 0:00:10]} 37. Qd2 {[%emt 0:00:28]} f4 {[%emt 0:00:31]} 38. Nc2 {[%emt 0:00:37]} Nf5 {[%emt 0:00:52]} 39. Be2 {[%emt 0:00:32]} Nhg3 {[%emt 0:00:17]} 40. Bg4 {[%emt 0:00:00]} Re5 {[%emt 0:00:00]} 41. Nd4 {[%emt 0:13:24]} Qxd5 {[%emt 0:04:55]} 42. Bxf5 {[%emt 0:05:21]} Nxf5 {[%emt 0:00:30]} 43. Nxf5 {[%emt 0:07:21]} Qxd2 {[%emt 0:00:24]} 44. Rxd2 {[%emt 0:00:01]} Rfxf5 {[%emt 0:00:44]} 45. Rf2 {[%emt 0:02:55]} f3 {[%emt 0:03:19]} 46. gxf3 {[%emt 0:00:17]} Rxf3 {[%emt 0:08:13]} 47. Rfe2 {[%emt 0:00:59]} Kf4 {[%emt 0:00:22]} 0-1

[Event "EYTCC Girls U18 2022"]
[Site "Thessaloniki"]
[Date "2022.07.16"]
[Round "5.8"]
[White "Bashylina, Luisa"]
[Black "Guid, Taja"]
[Result "1-0"]
[ECO "D31"]
[WhiteElo "2041"]
[BlackElo "1479"]
[Annotator "ChessBase"]
[PlyCount "65"]
[EventDate "2022.07.12"]
[EventType "team-tourn"]
[EventCountry "GRE"]
[SourceTitle "playchess.com"]
[Source "ChessBase"]
[SourceQuality "1"]
[WhiteTeam "Germany"]
[BlackTeam "Slovenia"]
[WhiteTeamCountry "GER"]
[BlackTeamCountry "SLO"]
[TimeControl "40/5400+30:1800+30"]

1. d4 {[%emt 0:00:02]} d5 {[%emt 0:00:07]} 2. c4 {[%emt 0:00:04]} e6 {[%emt 0:00:05]} 3. Nc3 {[%emt 0:00:03]} c6 {[%emt 0:00:06]} 4. e4 {[%emt 0:00:03]} Bb4 {[%emt 0:00:07]} 5. Bd3 {[%emt 0:01:07]} dxe4 {[%emt 0:00:56]} 6. Bxe4 {[%emt 0:00:06]} Nf6 {[%emt 0:15:02]} 7. Bc2 {[%emt 0:03:26]} O-O {[%emt 0:01:58]} 8. Nf3 {[%emt 0:01:16]} Nbd7 {[%emt 0:09:47]} 9. O-O {[%emt 0:00:47]} Qc7 {[%emt 0:02:22]} 10. a3 {[%emt 0:10:57]} Bd6 {[%emt 0:07:31]} 11. h3 {[%emt 0:08:21]} Re8 {[%emt 0:02:30]} 12. Re1 {[%emt 0:04:53]} b6 {[%emt 0:07:39]} 13. d5 {[%emt 0:16:57]} Ba6 {[%emt 0:13:55]} 14. dxe6 {[%emt 0:05:45]} fxe6 {[%emt 0:01:04]} 15. b3 {[%emt 0:03:31]} Rad8 {[%emt 0:01:19]} 16. Bg5 {[%emt 0:09:55]} Nf8 {[%emt 0:07:26]} 17. Qe2 {[%emt 0:01:36]} Qf7 {[%emt 0:01:29]} 18. Ne4 {[%emt 0:05:39]} Bc7 {[%emt 0:03:31]} 19. Qe3 {[%emt 0:06:00]} Rd7 {[%emt 0:03:10]} 20. Rad1 {[%emt 0:06:20]} Rxd1 {[%emt 0:01:00]} 21. Rxd1 {[%emt 0:00:07]} c5 {[%emt 0:02:16]} 22. Nd6 {[%emt 0:01:23]} Bxd6 {[%emt 0:00:14]} 23. Rxd6 {[%emt 0:00:04]} h6 {[%emt 0:01:08]} 24. Bf4 {[%emt 0:02:00]} N8d7 {[%emt 0:01:40]} 25. Ne5 {[%emt 0:04:13]} Nxe5 {[%emt 0:00:31]} 26. Bxe5 {[%emt 0:00:17]} Bb7 {[%emt 0:00:46]} 27. f3 {[%emt 0:03:59]} Qe7 {[%emt 0:04:05]} 28. Qd3 {[%emt 0:00:30]} Bc8 {[%emt 0:03:21]} 29. Qg6 {[%emt 0:01:26]} Rf8 {[%emt 0:01:27]} 30. Rc6 {[%emt 0:01:25]} Bd7 {[%emt 0:02:57]} 31. Rc7 {[%emt 0:00:41]} a6 {[%emt 0:00:48]} 32. Bxf6 {[%emt 0:00:22]} Rxf6 {[%emt 0:00:09]} 33. Qd3 {[%emt 0:00:07]} 1-0

[Event "EYTCC Girls U18 2022"]
[Site "Thessaloniki"]
[Date "2022.07.16"]
[Round "5.9"]
[White "Bondar, Daria"]
[Black "Buchholz, Maja"]
[Result "1-0"]
[ECO "C02"]
[WhiteElo "1566"]
[BlackElo "1879"]
[Annotator "NA"]
[PlyCount "109"]
[EventDate "2022.07.12"]
[EventType "team-tourn"]
[EventCountry "GRE"]
[SourceTitle "playchess.com"]
[Source "ChessBase"]
[SourceQuality "1"]
[WhiteTeam "Ukraine"]
[BlackTeam "Germany"]
[WhiteTeamCountry "UKR"]
[BlackTeamCountry "GER"]
[TimeControl "40/5400+30:1800+30"]

1. e4 {[%emt 0:00:03]} e6 {[%emt 0:00:08]} 2. d4 {[%emt 0:00:05]} d5 {[%emt 0:00:05]} 3. e5 {[%emt 0:00:03]} c5 {[%emt 0:00:04]} 4. c3 {[%emt 0:00:03]} Nc6 {[%emt 0:00:04]} 5. Nf3 {[%emt 0:00:05]} Qb6 {[%emt 0:00:05]} 6. a3 {[%emt 0:00:11]} Nh6 {[%emt 0:00:23]} 7. b4 {[%emt 0:00:29]} cxd4 {[%emt 0:00:06]} 8. Bxh6 {[%emt 0:00:16]} gxh6 {[%emt 0:00:12]} 9. cxd4 {[%emt 0:00:02]} Bd7 {[%emt 0:00:32]} 10. Be2 {[%emt 0:01:09]} Rg8 {[%emt 0:00:32]} 11. O-O {[%emt 0:00:38]} Rg4 {[%emt 0:00:31]} 12. h3 {[%emt 0:00:38]} Rf4 {[%emt 0:00:31]} 13. g3 {[%emt 0:00:03]} Rxf3 {[%emt 0:00:47]} 14. Bxf3 {[%emt 0:00:03]} Nxd4 {[%emt 0:00:14]} 15. Nc3 {[%emt 0:17:22]} Bg7 {[%emt 0:04:48]} 16. Re1 {[%emt 0:10:03]} Rc8 {[%emt 0:27:49]} 17. Rc1 {[%emt 0:10:40]} Rc4 {[%emt 0:04:59]} 18. Bh5 {[%emt 0:14:25]} Qc7 {[%emt 0:18:44]} 19. Qd3 {[%emt 0:11:53]} Kf8 {[%emt 0:09:19]} 20. Na2 {[%emt 0:20:26]} Nc2 {[%emt 0:11:15]} 21. Red1 {[%emt 0:06:01]} Ba4 22. f4 Kg8 {[%emt 0:03:32]} 23. Rd2 {[%emt 0:01:33]} Qb6+ {[%emt 0:04:12]} 24. Kh1 {[%emt 0:00:45]} Rd4 {[%emt 0:00:50]} 25. Qc3 {[%emt 0:01:07]} Rxd2 {[%emt 0:00:20]} 26. Qxd2 {[%emt 0:00:04]} Nxa3 {[%emt 0:01:08]} 27. Rc8+ {[%emt 0:00:30]} Bf8 {[%emt 0:00:07]} 28. Qd3 {[%emt 0:01:57]} Nc4 {[%emt 0:02:35]} 29. Bxf7+ {[%emt 0:01:53]} Kg7 {[%emt 0:00:59]} 30. Bh5 {[%emt 0:02:08]} Bc6 {[%emt 0:04:03]} 31. Rxf8 {[%emt 0:00:40]} Kxf8 {[%emt 0:02:36]} 32. Qxh7 {[%emt 0:00:01]} Nxe5 {[%emt 0:00:17]} 33. Qh8+ {[%emt 0:01:03]} Ke7 {[%emt 0:00:10]} 34. Qg7+ {[%emt 0:00:31]} Kd8 {[%emt 0:00:19]} 35. Qxe5 {[%emt 0:00:21]} d4+ {[%emt 0:02:42]} 36. Kh2 {[%emt 0:00:06]} d3 {[%emt 0:01:57]} 37. Qd6+ {[%emt 0:00:22]} Kc8 {[%emt 0:01:00]} 38. Qf8+ {[%emt 0:00:24]} Kc7 {[%emt 0:00:23]} 39. Qe7+ {[%emt 0:00:11]} Kb8 {[%emt 0:00:19]} 40. Qd6+ {[%emt 0:00:00]} Kc8 {[%emt 0:00:00]} 41. Qxe6+ {[%emt 0:03:07]} Kc7 {[%emt 0:00:34]} 42. Qe7+ {[%emt 0:00:36]} Kb8 {[%emt 0:00:28]} 43. Qd6+ {[%emt 0:00:11]} Qc7 {[%emt 0:00:56]} 44. Qxd3 {[%emt 0:02:04]} Qe7 {[%emt 0:02:56]} 45. b5 {[%emt 0:02:58]} Bd7 {[%emt 0:02:54]} 46. Nc3 {[%emt 0:02:12]} a5 {[%emt 0:03:05]} 47. Bg4 {[%emt 0:01:26]} Qe1 {[%emt 0:02:08]} 48. Bxd7 {[%emt 0:00:42]} Qf2+ {[%emt 0:00:16]} 49. Kh1 {[%emt 0:00:01]} Kc7 {[%emt 0:01:21]} 50. Ne4 {[%emt 0:01:08]} Qe1+ {[%emt 0:00:20]} 51. Kg2 {[%emt 0:00:03]} a4 {[%emt 0:00:26]} 52. Qd6+ {[%emt 0:00:11]} Kd8 {[%emt 0:00:07]} 53. Bc6+ {[%emt 0:00:10]} Kc8 {[%emt 0:00:05]} 54. Qd7+ {[%emt 0:00:03]} Kb8 {[%emt 0:00:06]} 55. Qxb7# {[%emt 0:00:09]} 1-0

[Event "EYTCC Girls U18 2022"]
[Site "Thessaloniki"]
[Date "2022.07.16"]
[Round "5.10"]
[White "Werner, Rosalie"]
[Black "Russeva, Viktoria"]
[Result "0-1"]
[ECO "B98"]
[WhiteElo "1783"]
[BlackElo "1866"]
[Annotator "NA"]
[PlyCount "96"]
[EventDate "2022.07.12"]
[EventType "team-tourn"]
[EventCountry "GRE"]
[SourceTitle "playchess.com"]
[Source "ChessBase"]
[SourceQuality "1"]
[WhiteTeam "Germany"]
[BlackTeam "Ukraine"]
[WhiteTeamCountry "GER"]
[BlackTeamCountry "UKR"]
[TimeControl "40/5400+30:1800+30"]

1. e4 {[%emt 0:00:03]} c5 {[%emt 0:00:05]} 2. Nf3 {[%emt 0:00:05]} d6 {[%emt 0:00:06]} 3. d4 {[%emt 0:00:04]} cxd4 {[%emt 0:00:04]} 4. Nxd4 {[%emt 0:00:05]} Nf6 {[%emt 0:00:05]} 5. Nc3 {[%emt 0:00:06]} a6 {[%emt 0:00:07]} 6. Bg5 {[%emt 0:00:06]} e6 {[%emt 0:01:10]} 7. f4 {[%emt 0:00:10]} Be7 {[%emt 0:01:11]} 8. Qe2 {[%emt 0:00:09]} Nbd7 {[%emt 0:05:29]} 9. O-O-O {[%emt 0:00:33]} O-O {[%emt 0:15:07]} 10. g4 {[%emt 0:03:30]} Qc7 {[%emt 0:04:54]} 11. Bg2 {[%emt 0:09:22]} Nb6 {[%emt 0:05:11]} 12. h4 {[%emt 0:02:59]} Bd7 {[%emt 0:04:21]} 13. h5 {[%emt 0:14:04]} Nc4 {[%emt 0:04:47]} 14. Bh4 {[%emt 0:08:48]} Rfc8 {[%emt 0:11:17]} 15. g5 {[%emt 0:05:07]} Ne8 {[%emt 0:12:40]} 16. g6 {[%emt 0:06:29]} Bxh4 {[%emt 0:01:46]} 17. gxf7+ {[%emt 0:00:58]} Kxf7 {[%emt 0:00:09]} 18. Rxh4 {[%emt 0:00:16]} Nxb2 {[%emt 0:01:47]} 19. Kxb2 {[%emt 0:03:46]} Qxc3+ {[%emt 0:00:18]} 20. Kb1 Qb4+ 21. Nb3 {[%emt 0:06:09]} a5 {[%emt 0:07:54]} 22. f5 {[%emt 0:11:33]} exf5 {[%emt 0:11:28]} 23. Qf2 {[%emt 0:01:05]} Rc4 {[%emt 0:03:47]} 24. Rh3 {[%emt 0:05:20]} a4 {[%emt 0:00:55]} 25. c3 {[%emt 0:03:17]} Rxc3 {[%emt 0:01:43]} 26. Rxc3 {[%emt 0:04:49]} Qxc3 {[%emt 0:00:09]} 27. Nd4 {[%emt 0:00:50]} Nf6 {[%emt 0:01:48]} 28. exf5 {[%emt 0:05:10]} Ra6 {[%emt 0:01:07]} 29. Qb2 {[%emt 0:08:08]} Qa5 {[%emt 0:02:23]} 30. Qc2 {[%emt 0:00:52]} Rb6+ {[%emt 0:02:11]} 31. Ka1 {[%emt 0:00:11]} Rb4 {[%emt 0:00:38]} 32. Qd3 {[%emt 0:00:56]} Qb6 {[%emt 0:00:52]} 33. a3 {[%emt 0:00:38]} Rb2 {[%emt 0:00:14]} 34. Qc4+ {[%emt 0:00:07]} Kf8 {[%emt 0:00:29]} 35. Bf3 {[%emt 0:00:35]} Rf2 {[%emt 0:00:23]} 36. Rb1 {[%emt 0:00:16]} Qc5 {[%emt 0:00:26]} 37. Qd3 {[%emt 0:01:00]} b6 {[%emt 0:00:57]} 38. Bb7 {[%emt 0:01:02]} Bxf5 {[%emt 0:00:36]} 39. Nxf5 {[%emt 0:00:38]} Rxf5 {[%emt 0:00:10]} 40. Rb2 {[%emt 0:00:00]} Qe5 {[%emt 0:00:00]} 41. Ka2 {[%emt 0:01:23]} Rxh5 {[%emt 0:07:00]} 42. Re2 {[%emt 0:05:34]} Rh2 {[%emt 0:01:31]} 43. Bg2 {[%emt 0:00:08]} Qc5 {[%emt 0:00:34]} 44. Qa6 {[%emt 0:00:49]} Rh4 {[%emt 0:03:09]} 45. Qa8+ {[%emt 0:02:15]} Kf7 {[%emt 0:00:11]} 46. Qb7+ {[%emt 0:01:00]} Kg6 {[%emt 0:00:32]} 47. Qf3 {[%emt 0:02:36]} Qc4+ {[%emt 0:01:04]} 48. Kb2 {[%emt 0:01:08]} Rh5 {[%emt 0:01:55]} 0-1